{"text_format":"1","workbook":"xlsx","n_sheets":6,"sheets":["Sheet1","Employe","105","106","107","108"],"not_rendered":{"charts":0,"images":0,"macros":1,"external_links":1,"defined_names":5,"comments":0,"pivot_tables":0},"unopened":[],"bounds":{"document_bytes":16777216,"sheet_cells":100000,"rows_first":2000,"rows_last":500,"rows_between":2000,"halvings":0,"cell_chars":16384,"cell_head_chars":4096},"cells_cut":0,"cells_raw":0,"read":"whole","date_system":"1900"}

{"sheet":"Sheet1","index":0,"n_rows":9,"n_cols":8,"rows_kept":9,"cut":false,"hidden":false,"merged":[]}
[]
[]
[null,"تاريخ الإيصال","رقم الإيصال","نوع الإيصال","الإسم","القيمة","العملة","ملاحظات"]
[null,"2018-09-25",105,null,null,0,"LBP"]
[null,"2018-09-25",105]
[null,"2018-09-25",106]
[null,null,107]
[null,null,107]
[null,null,108]

{"sheet":"Employe","index":1,"n_rows":25,"n_cols":19,"rows_kept":25,"cut":false,"hidden":false,"merged":[[24,11,24,14],[24,6,24,9],[22,6,22,9],[7,12,7,13],[9,12,9,14],[11,12,11,14],[12,12,12,14],[14,13,14,14],[15,13,15,14],[14,11,14,12],[15,11,15,12],[17,11,17,13],[18,11,18,13],[19,11,19,13],[20,11,20,13],[22,11,22,14]]}
[null,null,"Sheet1"]
[null,null,105,null,null,null,null,{"$f":"J8","v":109}]
[null,null,106,null,null,null,null,null,null,"إيصال قبض"]
[null,null,107,null,null,null,null,null,null,"  -  "]
[null,null,108,null,null,null,null,null,null,null,null,null,null,null,null,null,null,null,"LBP"]
[null,null,null,null,null,null,null,null,null,null,null,null,null,null,null,null,null,null,"USD"]
[]
[null,null,null,null,null,null,"التاريخ :",{"$f":"TODAY()","v":"2018-09-25"},null,109,"No:",null,{"$f":"L21","v":0},null,{"$f":"O18","v":"LBP"}]
[]
[null,null,null,null,null,null,"وصلني من السادة .................",null,null,null,null,"الإسم:"]
[]
[null,null,null,null,null,null,"مبلغ وقدره",{"$f":"IF(O8=\"LBP\",[1]!kh_TextNum(M8,1,\"ليرة لبنانية\",\"ليرة لبنانية\",\"ليرة لبنانية\"),IF(O8=\"USD\",[1]!kh_TextNum(M8,1,\"دولار أمريكي\",\"دولار أمريكي\",\"دولار أمريكي\"),\"\"))","v":{"$error":"#NAME?"}},null,null,null,"عـــن:"]
[]
[]
[null,null,null,null,null,null,null,null,null,null,null,"من تاريخ :",null,{"$f":"N16-5","v":"2018-09-20"}]
[null,null,null,null,null,null,null,null,null,null,null,"إلى تاريخ :",null,{"$f":"TODAY()","v":"2018-09-25"}]
[]
[null,null,null,null,null,null,"راتــب أســـاســـي",null,null,null,null,null,null,null,"LBP"]
[null,null,null,null,null,null,"إضــــافـــي"]
[null,null,null,null,null,null,"غــيــاب + تأخير"]
[null,null,null,null,null,null,"المجموع",null,null,null,null,{"$f":"L18+L19-L20","v":0},null,null,{"$f":"O18","v":"LBP"}]
[]
[null,null,null,null,null,null,"أمين الصندوق",null,null,null,null,"إسم وتوقيع المستلم"]
[]
[null,null,null,null,null,null,"hnhhhhh",null,null,null,null,"ggbbbb"]

{"sheet":"105","index":2,"n_rows":25,"n_cols":19,"rows_kept":25,"cut":false,"hidden":false,"merged":[[22,6,22,9],[22,11,22,14],[24,6,24,9],[24,11,24,14],[15,11,15,12],[15,13,15,14],[17,11,17,13],[18,11,18,13],[19,11,19,13],[20,11,20,13],[7,12,7,13],[9,12,9,14],[11,12,11,14],[12,12,12,14],[14,11,14,12],[14,13,14,14]]}
[null,null,"Sheet1"]
[null,null,"Employe",null,null,null,null,{"$f":"J8","v":105}]
[null,null,106,null,null,null,null,null,null,"إيصال قبض"]
[null,null,107,null,null,null,null,null,null,"  -  "]
[null,null,108,null,null,null,null,null,null,null,null,null,null,null,null,null,null,null,"LBP"]
[null,null,null,null,null,null,null,null,null,null,null,null,null,null,null,null,null,null,"USD"]
[]
[null,null,null,null,null,null,"التاريخ :","2018-09-25",null,105,"No:",null,{"$f":"L21","v":0},null,{"$f":"O18","v":"LBP"}]
[]
[null,null,null,null,null,null,"وصلني من السادة .................",null,null,null,null,"الإسم:"]
[]
[null,null,null,null,null,null,"مبلغ وقدره",{"$f":"IF(O8=\"LBP\",[1]!kh_TextNum(M8,1,\"ليرة لبنانية\",\"ليرة لبنانية\",\"ليرة لبنانية\"),IF(O8=\"USD\",[1]!kh_TextNum(M8,1,\"دولار أمريكي\",\"دولار أمريكي\",\"دولار أمريكي\"),\"\"))","v":{"$error":"#NAME?"}},null,null,null,"عـــن:"]
[]
[]
[null,null,null,null,null,null,null,null,null,null,null,"من تاريخ :",null,"2018-09-20"]
[null,null,null,null,null,null,null,null,null,null,null,"إلى تاريخ :",null,"2018-09-25"]
[]
[null,null,null,null,null,null,"راتــب أســـاســـي",null,null,null,null,null,null,null,"LBP"]
[null,null,null,null,null,null,"إضــــافـــي"]
[null,null,null,null,null,null,"غــيــاب + تأخير"]
[null,null,null,null,null,null,"المجموع",null,null,null,null,{"$f":"L18+L19-L20","v":0},null,null,{"$f":"O18","v":"LBP"}]
[]
[null,null,null,null,null,null,"أمين الصندوق",null,null,null,null,"إسم وتوقيع المستلم"]
[]
[null,null,null,null,null,null,"hnhhhhh",null,null,null,null,"ggbbbb"]

{"sheet":"106","index":3,"n_rows":25,"n_cols":19,"rows_kept":25,"cut":false,"hidden":false,"merged":[[22,6,22,9],[22,11,22,14],[24,6,24,9],[24,11,24,14],[15,11,15,12],[15,13,15,14],[17,11,17,13],[18,11,18,13],[19,11,19,13],[20,11,20,13],[7,12,7,13],[9,12,9,14],[11,12,11,14],[12,12,12,14],[14,11,14,12],[14,13,14,14]]}
[null,null,"Sheet1"]
[null,null,105,null,null,null,null,{"$f":"J8","v":106}]
[null,null,105,null,null,null,null,null,null,"إيصال قبض"]
[null,null,107,null,null,null,null,null,null,"  -  "]
[null,null,108,null,null,null,null,null,null,null,null,null,null,null,null,null,null,null,"LBP"]
[null,null,null,null,null,null,null,null,null,null,null,null,null,null,null,null,null,null,"USD"]
[]
[null,null,null,null,null,null,"التاريخ :","2018-09-25",null,106,"No:",null,{"$f":"L21","v":0},null,{"$f":"O18","v":"LBP"}]
[]
[null,null,null,null,null,null,"وصلني من السادة .................",null,null,null,null,"الإسم:"]
[]
[null,null,null,null,null,null,"مبلغ وقدره",{"$f":"IF(O8=\"LBP\",[1]!kh_TextNum(M8,1,\"ليرة لبنانية\",\"ليرة لبنانية\",\"ليرة لبنانية\"),IF(O8=\"USD\",[1]!kh_TextNum(M8,1,\"دولار أمريكي\",\"دولار أمريكي\",\"دولار أمريكي\"),\"\"))","v":{"$error":"#NAME?"}},null,null,null,"عـــن:"]
[]
[]
[null,null,null,null,null,null,null,null,null,null,null,"من تاريخ :",null,"2018-09-20"]
[null,null,null,null,null,null,null,null,null,null,null,"إلى تاريخ :",null,"2018-09-25"]
[]
[null,null,null,null,null,null,"راتــب أســـاســـي",null,null,null,null,null,null,null,"LBP"]
[null,null,null,null,null,null,"إضــــافـــي"]
[null,null,null,null,null,null,"غــيــاب + تأخير"]
[null,null,null,null,null,null,"المجموع",null,null,null,null,{"$f":"L18+L19-L20","v":0},null,null,{"$f":"O18","v":"LBP"}]
[]
[null,null,null,null,null,null,"أمين الصندوق",null,null,null,null,"إسم وتوقيع المستلم"]
[]
[null,null,null,null,null,null,"hnhhhhh",null,null,null,null,"ggbbbb"]

{"sheet":"107","index":4,"n_rows":25,"n_cols":19,"rows_kept":25,"cut":false,"hidden":false,"merged":[[22,6,22,9],[22,11,22,14],[24,6,24,9],[24,11,24,14],[15,11,15,12],[15,13,15,14],[17,11,17,13],[18,11,18,13],[19,11,19,13],[20,11,20,13],[7,12,7,13],[9,12,9,14],[11,12,11,14],[12,12,12,14],[14,11,14,12],[14,13,14,14]]}
[null,null,"Sheet1"]
[null,null,105,null,null,null,null,{"$f":"J8","v":107}]
[null,null,106,null,null,null,null,null,null,"إيصال قبض"]
[null,null,106,null,null,null,null,null,null,"  -  "]
[null,null,108,null,null,null,null,null,null,null,null,null,null,null,null,null,null,null,"LBP"]
[null,null,null,null,null,null,null,null,null,null,null,null,null,null,null,null,null,null,"USD"]
[]
[null,null,null,null,null,null,"التاريخ :","2018-09-25",null,107,"No:",null,{"$f":"L21","v":0},null,{"$f":"O18","v":"LBP"}]
[]
[null,null,null,null,null,null,"وصلني من السادة .................",null,null,null,null,"الإسم:"]
[]
[null,null,null,null,null,null,"مبلغ وقدره",{"$f":"IF(O8=\"LBP\",[1]!kh_TextNum(M8,1,\"ليرة لبنانية\",\"ليرة لبنانية\",\"ليرة لبنانية\"),IF(O8=\"USD\",[1]!kh_TextNum(M8,1,\"دولار أمريكي\",\"دولار أمريكي\",\"دولار أمريكي\"),\"\"))","v":{"$error":"#NAME?"}},null,null,null,"عـــن:"]
[]
[]
[null,null,null,null,null,null,null,null,null,null,null,"من تاريخ :",null,"2018-09-20"]
[null,null,null,null,null,null,null,null,null,null,null,"إلى تاريخ :",null,"2018-09-25"]
[]
[null,null,null,null,null,null,"راتــب أســـاســـي",null,null,null,null,null,null,null,"LBP"]
[null,null,null,null,null,null,"إضــــافـــي"]
[null,null,null,null,null,null,"غــيــاب + تأخير"]
[null,null,null,null,null,null,"المجموع",null,null,null,null,{"$f":"L18+L19-L20","v":0},null,null,{"$f":"O18","v":"LBP"}]
[]
[null,null,null,null,null,null,"أمين الصندوق",null,null,null,null,"إسم وتوقيع المستلم"]
[]
[null,null,null,null,null,null,"hnhhhhh",null,null,null,null,"ggbbbb"]

{"sheet":"108","index":5,"n_rows":25,"n_cols":19,"rows_kept":25,"cut":false,"hidden":false,"merged":[[22,6,22,9],[22,11,22,14],[24,6,24,9],[24,11,24,14],[15,11,15,12],[15,13,15,14],[17,11,17,13],[18,11,18,13],[19,11,19,13],[20,11,20,13],[7,12,7,13],[9,12,9,14],[11,12,11,14],[12,12,12,14],[14,11,14,12],[14,13,14,14]]}
[null,null,"Sheet1"]
[null,null,105,null,null,null,null,{"$f":"J8","v":108}]
[null,null,106,null,null,null,null,null,null,"إيصال قبض"]
[null,null,107,null,null,null,null,null,null,"  -  "]
[null,null,107,null,null,null,null,null,null,null,null,null,null,null,null,null,null,null,"LBP"]
[null,null,null,null,null,null,null,null,null,null,null,null,null,null,null,null,null,null,"USD"]
[]
[null,null,null,null,null,null,"التاريخ :","2018-09-25",null,108,"No:",null,{"$f":"L21","v":0},null,{"$f":"O18","v":"LBP"}]
[]
[null,null,null,null,null,null,"وصلني من السادة .................",null,null,null,null,"الإسم:"]
[]
[null,null,null,null,null,null,"مبلغ وقدره",{"$f":"IF(O8=\"LBP\",[1]!kh_TextNum(M8,1,\"ليرة لبنانية\",\"ليرة لبنانية\",\"ليرة لبنانية\"),IF(O8=\"USD\",[1]!kh_TextNum(M8,1,\"دولار أمريكي\",\"دولار أمريكي\",\"دولار أمريكي\"),\"\"))","v":{"$error":"#NAME?"}},null,null,null,"عـــن:"]
[]
[]
[null,null,null,null,null,null,null,null,null,null,null,"من تاريخ :",null,"2018-09-20"]
[null,null,null,null,null,null,null,null,null,null,null,"إلى تاريخ :",null,"2018-09-25"]
[]
[null,null,null,null,null,null,"راتــب أســـاســـي",null,null,null,null,null,null,null,"LBP"]
[null,null,null,null,null,null,"إضــــافـــي"]
[null,null,null,null,null,null,"غــيــاب + تأخير"]
[null,null,null,null,null,null,"المجموع",null,null,null,null,{"$f":"L18+L19-L20","v":0},null,null,{"$f":"O18","v":"LBP"}]
[]
[null,null,null,null,null,null,"أمين الصندوق",null,null,null,null,"إسم وتوقيع المستلم"]
[]
[null,null,null,null,null,null,"hnhhhhh",null,null,null,null,"ggbbbb"]